bitfinex/quotes_SOLUSD_20241226
["timestamp","ask_amount","ask_price","bid_price","bid_amount"]
[1735204301721,29.70344424,190.3,190.2,0.12549]
[1735204301722,16.56634424,190.25,190.2,0.12549]
[1735204302027,16.56634424,190.3,190.25,0.12549]
[1735204302395,16.56634424,190.29,190.25,0.12549]
[1735204302801,16.56634424,190.29,190.23,20.0]
[1735204303099,16.56634424,190.27,190.24,0.12549]
[1735204303499,16.56634424,190.27,190.21,0.12549]
[1735204304635,16.56634424,190.26,190.21,0.12549]
[1735204306734,16.56634424,190.26,190.19,23.19644424]
[1735204307529,16.56634424,190.26,190.2,0.12549]
[1735204310736,16.56634424,190.23,190.19,20.0]
[1735204310936,16.56634424,190.21,190.14,7.7316]
[1735204311238,16.56634424,190.22,190.15,16.56634424]
[1735204311463,16.56634424,190.24,190.18,16.69183424]
[1735204311937,16.56634424,190.25,190.18,16.69183424]
[1735204313043,16.56634424,190.24,190.18,16.69183424]
[1735204313248,16.56634424,190.24,190.18,0.12549]
[1735204314261,16.56634424,190.23,190.18,0.12549]
[1735204314461,16.56634424,190.22,190.15,16.56634424]
[1735204314683,13.1404,190.26,190.15,16.56634424]
[1735204314684,16.56634424,190.21,190.15,16.56634424]
[1735204314981,16.56634424,190.21,190.16,0.12549]
[1735204315645,13.1404,190.26,190.11,16.56634424]
[1735204315646,16.56634424,190.17,190.11,16.56634424]
[1735204315944,16.56634424,190.16,190.09,17.35505835]
[1735204316149,16.56634424,190.14,190.07,24.29794424]
[1735204316563,16.56634424,190.13,190.07,7.7316]
[1735204316788,16.56634424,190.14,190.08,0.12549]
[1735204317200,16.56634424,190.14,190.1,20.0]
[1735204319607,16.56634424,190.15,190.1,20.0]
[1735204319902,16.56634424,190.15,190.11,0.12549]
[1735204320105,27.9251,190.23,190.11,0.12549]
[1735204320106,16.56634424,190.17,190.11,0.12549]
[1735204320803,13.1426,190.22,190.12,16.56634424]
[1735204320981,16.56634424,190.23,190.17,0.12549]
[1735204321400,16.56634424,190.24,190.17,16.69183424]
[1735204322309,16.56634424,190.24,190.19,0.12549]
[1735204322494,16.56634424,190.25,190.19,0.12549]
[1735204323694,16.56634424,190.21,190.19,20.0]
[1735204324010,16.56634424,190.22,190.19,20.0]
[1735204324505,56.06817159,190.33,190.2,16.69183424]
[1735204324506,15.57187159,190.33,190.2,16.69183424]
[1735204324714,16.56634424,190.28,190.23,0.12549]
[1735204325288,16.56634424,190.28,190.22,0.12549]
[1735204326106,16.56634424,190.26,190.2,36.56634424]
[1735204326307,16.56634424,190.26,190.21,0.12549]
[1735204326493,33.13268924,190.27,190.21,16.69183424]
[1735204326692,16.56634424,190.24,190.17,16.56634424]
[1735204327311,16.56634424,190.25,190.2,0.12549]
[1735204327508,16.566345,190.27,190.23,0.12549]
[1735204328615,33.13268924,190.27,190.22,0.12549]
[1735204329210,33.13268924,190.27,190.21,0.12549]
[1735204330600,33.13268924,190.27,190.22,0.12549]
[1735204331122,16.566345,190.27,190.22,0.12549]
[1735204332232,16.56634424,190.3,190.23,16.69183424]
[1735204332610,16.56634424,190.28,190.21,36.56634424]
[1735204332811,16.56634424,190.28,190.22,0.12549]
[1735204333327,16.56634424,190.23,190.17,7.8383]
[1735204333533,16.56634424,190.2,190.13,22.81624424]
[1735204334313,16.56634424,190.2,190.14,0.12549]
[1735204335409,16.56634424,190.21,190.14,16.69183424]
[1735204335821,16.56634424,190.23,190.17,0.12549]
[1735204336311,16.56634424,190.21,190.15,0.78870635]
[1735204336621,16.56634424,190.2,190.14,16.56634424]
[1735204336819,16.56634424,190.21,190.15,0.12549]
[1735204337024,16.56634424,190.2,190.15,0.12549]
[1735204337323,16.56634424,190.2,190.13,22.81624424]
[1735204337817,16.56634424,190.23,190.16,36.69183424]
[1735204338017,16.56634424,190.3,190.16,36.69183424]
[1735204338018,16.56634424,190.24,190.18,0.12549]
[1735204338622,16.56634424,190.22,190.17,0.12549]
[1735204338825,16.56634424,190.22,190.18,20.0]
[1735204341105,16.56634424,190.22,190.15,16.56634424]
[1735204341309,16.56634424,190.22,190.17,0.12549]
[1735204342236,16.56634424,190.23,190.17,0.12549]
[1735204343929,26.16253129,190.32,190.21,16.69183424]
[1735204344117,16.56634424,190.3,190.24,0.12549]
[1735204344432,16.56634424,190.31,190.24,16.69183424]
[1735204345007,16.56634424,190.29,190.24,0.12549]
[1735204345223,16.566345,190.34,190.24,16.69183424]
[1735204345417,16.56634424,190.3,190.24,16.69183424]
[1735204347332,16.56634424,190.29,190.23,16.56634424]
[1735204347524,16.56634424,190.29,190.22,16.56634424]
[1735204347922,16.56634424,190.29,190.23,0.12549]
[1735204349038,16.56634424,190.28,190.23,0.12549]
[1735204356344,16.56634424,190.28,190.22,0.12549]
[1735204356720,16.56634424,190.27,190.22,0.12549]
[1735204358193,10.62991984,190.27,190.22,0.12549]
[1735204358851,10.62991984,190.26,190.22,0.12549]
[1735204363577,10.62991984,190.26,190.2,12.13621984]
[1735204363943,10.62991984,190.26,190.2,1.5063]
[1735204364150,10.62991984,190.24,190.2,1.5063]
[1735204364545,10.62991984,190.24,190.19,0.12549]
[1735204365351,10.62991984,190.24,190.2,0.12549]
[1735204365754,10.62991984,190.23,190.2,0.12549]
[1735204365967,10.62991984,190.24,190.19,0.12549]
[1735204367178,10.62991984,190.24,190.2,0.12549]
[1735204367865,10.62991984,190.25,190.2,0.12549]
[1735204368366,1.634,190.31,190.23,10.62991984]
[1735204368562,10.62991984,190.28,190.22,0.12549]
[1735204368882,10.62991984,190.28,190.23,10.62991984]
[1735204369980,10.62991984,190.29,190.23,10.62991984]
[1735204370480,10.62991984,190.3,190.24,10.75540984]
[1735204370880,10.62991984,190.29,190.24,10.75540984]
[1735204373282,10.62991984,190.3,190.24,10.75540984]
[1735204373780,10.62991984,190.29,190.23,10.75540984]
[1735204376783,10.62991984,190.28,190.23,0.12549]
[1735204376989,10.62991984,190.28,190.22,10.62991984]
[1735204377495,10.62991984,190.26,190.16,16.8305832]
[1735204377674,10.62991984,190.26,190.2,10.62991984]
[1735204377996,10.62991984,190.26,190.21,0.12549]
[1735204378290,10.62991984,190.26,190.2,10.62991984]
[1735204380094,10.62991984,190.26,190.21,0.12549]
[1735204380296,13.1357,190.33,190.21,0.12549]
[1735204380500,10.62991984,190.26,190.21,0.12549]
[1735204380668,13.1357,190.33,190.21,0.12549]
[1735204380865,10.62991984,190.26,190.21,0.12549]
[1735204383082,13.1357,190.33,190.21,0.12549]
[1735204383285,10.62991984,190.27,190.22,0.12549]
[1735204383683,10.62991984,190.23,190.16,16.8305832]
[1735204383890,10.62991984,190.2,190.16,16.04215272]
[1735204384474,10.62991984,190.2,190.16,7.7708]
[1735204384673,10.62991984,190.18,190.13,8.27135272]
[1735204384980,10.62991984,190.16,190.13,8.27135272]
[1735204385179,10.62991984,190.15,190.13,8.27135272]
[1735204385587,10.62991984,190.15,190.1,33.08541091]
[1735204385787,10.62991984,190.15,190.09,8.27135272]
[1735204386195,10.62991984,190.14,190.09,8.27135272]
[1735204386600,10.62991984,190.14,190.1,0.12549]
[1735204386775,10.62991984,190.15,190.1,0.12549]
[1735204387499,10.62991984,190.15,190.09,0.12549]
[1735204387801,10.62991984,190.15,190.09,10.75540984]
[1735204389202,10.62991984,190.13,190.07,16.79351984]
[1735204389501,10.62991984,190.13,190.07,20.0]
[1735204389977,10.62991984,190.16,190.1,0.12549]
[1735204390984,10.62991984,190.17,190.1,10.62991984]
[1735204391214,10.62991984,190.17,190.11,0.12549]
[1735204392195,10.62991984,190.16,190.07,20.0]
[1735204392498,10.62991984,190.16,190.09,10.62991984]
[1735204392700,10.62991984,190.16,190.1,0.12549]
[1735204393594,10.62991984,190.16,190.07,20.0]
[1735204393595,10.62991984,190.15,190.08,10.75540984]
[1735204393979,1.6082,190.21,190.13,20.0]
[1735204394180,10.62991984,190.18,190.13,20.0]
[1735204396817,10.62991984,190.15,190.07,0.78883195]
[1735204397021,55.66367936,190.2,190.07,10.62991984]
[1735204397197,10.62991984,190.16,190.06,2.39562694]
[1735204397386,10.62991984,190.18,190.12,0.12549]
[1735204398804,10.62991984,190.17,190.11,0.12549]
[1735204399118,10.62991984,190.15,190.1,20.0]
[1735204399322,10.62991984,190.16,190.1,20.0]
[1735204399733,1.6082,190.21,190.11,0.12549]
[1735204399887,10.62991984,190.18,190.11,10.75540984]
[1735204400521,10.62991984,190.17,190.11,0.12549]
[1735204402019,10.62991984,190.16,190.1,0.12549]
[1735204404216,10.62991984,190.15,190.1,0.12549]
[1735204405114,10.62991984,190.13,190.06,1.6066]
[1735204405415,10.62991984,190.13,190.07,0.12549]
[1735204406916,10.62991984,190.14,190.08,10.75540984]
[1735204407138,10.62991984,190.15,190.08,10.75540984]
[1735204407632,10.62991984,190.14,190.08,10.75540984]
[1735204409035,10.62991984,190.14,190.08,10.62991984]
[1735204409239,10.62991984,190.13,190.06,10.62991984]
[1735204409415,33.1473,190.16,190.03,16.79351984]
[1735204409416,10.62991984,190.1,190.03,16.79351984]
[1735204410116,20.0,190.16,190.08,0.12549]
[1735204410317,10.62991984,190.14,190.08,0.12549]
[1735204410743,10.62991984,190.15,190.08,10.62991984]
[1735204411338,10.62991984,190.14,190.08,0.12549]
[1735204412217,10.62991984,190.14,190.08,10.75540984]
[1735204412414,10.62991984,190.14,190.04,13.94416235]
[1735204412415,1.5916,190.19,190.11,0.12549]
[1735204412724,10.62991984,190.18,190.12,10.62991984]
[1735204413110,7.05641029,190.21,190.13,10.75540984]
[1735204413312,10.62992,190.23,190.17,10.62991984]
[1735204413516,10.62992,190.23,190.14,20.0]
[1735204413721,10.62991984,190.25,190.18,10.62991984]
[1735204414033,10.62991984,190.27,190.2,10.62991984]
[1735204414341,10.62991984,190.28,190.21,10.62991984]
[1735204414549,10.62991984,190.29,190.22,10.62991984]
[1735204414925,10.62992,190.3,190.23,10.75540984]
[1735204415136,10.62991984,190.3,190.24,10.62991984]
[1735204415717,10.62991984,190.29,190.24,0.12549]
[1735204416134,16.60638245,190.29,190.24,0.12549]
[1735204416650,16.60638245,190.27,190.21,6.2512]
[1735204416861,14.7261,190.34,190.17,16.60638245]
[1735204416862,16.60638245,190.24,190.17,16.60638245]
[1735204417150,16.60638245,190.23,190.17,16.60638245]
[1735204417929,16.60638245,190.22,190.17,0.12549]
[1735204418256,16.60638245,190.22,190.16,22.85758245]
[1735204418748,16.60638245,190.22,190.17,0.12549]
[1735204419343,16.60638245,190.22,190.16,6.2512]
[1735204419651,16.60638245,190.23,190.17,16.60638245]
[1735204419856,16.60638245,190.24,190.17,16.60638245]
[1735204420060,16.60638245,190.24,190.18,16.73187245]
[1735204420268,16.60638245,190.25,190.18,16.73187245]
[1735204420752,16.60638245,190.24,190.17,16.73187245]
[1735204422652,16.60638245,190.24,190.19,0.12549]
[1735204422862,16.60638245,190.27,190.21,16.60638245]
[1735204423035,16.60638245,190.29,190.23,16.60638245]
[1735204423353,16.60638245,190.3,190.24,0.12549]
[1735204423553,16.60638245,190.3,190.24,16.73187245]
[1735204423767,16.60638245,190.29,190.24,0.12549]
[1735204424051,16.60638245,190.28,190.23,0.12549]
[1735204424354,16.60638245,190.26,190.2,16.60638245]
[1735204424658,16.60638245,190.26,190.19,16.60638245]
[1735204424841,16.60638245,190.25,190.19,16.60638245]
[1735204425042,16.60638245,190.3,190.16,6.2512]
[1735204425043,16.60638245,190.23,190.17,16.60638245]
[1735204425231,16.60638245,190.23,190.16,22.85758245]
[1735204425431,16.60638245,190.23,190.17,0.12549]
[1735204426349,16.60638245,190.23,190.16,22.85758245]
[1735204426757,16.60638245,190.22,190.16,6.2512]
[1735204427147,16.60638245,190.23,190.16,16.73187245]
[1735204427648,16.60638245,190.2,190.14,21.645]
[1735204427851,16.60638245,190.2,190.14,1.645]
[1735204428255,16.60638245,190.2,190.13,16.60638245]
[1735204428256,16.60638245,190.18,190.12,16.60638245]
[1735204428436,16.60638245,190.17,190.11,6.1305]
[1735204428757,16.60638245,190.17,190.12,0.12549]
[1735204429160,13.1425,190.23,190.12,0.12549]
[1735204429161,16.60638245,190.18,190.12,0.12549]
[1735204429736,16.60638245,190.19,190.12,16.73187245]
[1735204429944,16.60638245,190.21,190.15,0.12549]
[1735204430244,16.60638245,190.22,190.16,0.12549]
[1735204431655,16.60638245,190.23,190.16,16.60638245]
[1735204432936,16.60638245,190.24,190.17,16.73187245]
[1735204433551,16.60638245,190.23,190.17,16.73187245]
[1735204434655,16.60638245,190.25,190.19,0.12549]
[1735204434964,16.60638245,190.26,190.19,16.73187245]
[1735204435345,16.60638245,190.27,190.2,16.60638245]
[1735204435776,16.60638245,190.28,190.21,16.73187245]
[1735204436955,16.60638245,190.29,190.22,16.60638245]
[1735204437385,16.60638245,190.28,190.22,0.12549]
[1735204437591,16.60638245,190.25,190.2,6.1305]
[1735204437777,16.60638245,190.24,190.19,1.5333]
[1735204438698,29.742682,190.32,190.19,18.13968245]
[1735204438699,16.60638245,190.26,190.19,18.13968245]
[1735204440190,16.60638245,190.26,190.2,0.12549]
[1735204440583,16.60638245,190.27,190.2,16.73187245]
[1735204440781,16.60638245,190.28,190.21,16.60638245]
[1735204442301,16.60638245,190.26,190.2,0.12549]
[1735204442506,16.60638245,190.26,190.19,18.13968245]
[1735204442806,16.60638245,190.24,190.19,1.5333]
[1735204443195,16.60638245,190.23,190.16,16.60638245]
[1735204443406,16.60638245,190.22,190.16,16.60638245]
[1735204444011,16.60638245,190.23,190.16,16.60638245]
[1735204444489,16.60638245,190.23,190.17,0.12549]
[1735204444685,16.60638245,190.21,190.14,18.27278245]
[1735204444990,16.60638245,190.2,190.14,1.6664]
[1735204447613,16.60638245,190.19,190.14,1.6664]
[1735204448208,16.60638245,190.2,190.14,1.6664]
[1735204449120,33.21276445,190.22,190.16,0.12549]
[1735204449294,16.60638245,190.23,190.16,16.73187245]
[1735204449686,16.60638245,190.24,190.17,16.60638245]
[1735204451125,16.606382,190.26,190.18,16.73187245]
[1735204451297,16.60638245,190.26,190.19,16.60638245]
[1735204451497,16.60638245,190.29,190.22,16.73187245]
[1735204451698,16.60638245,190.3,190.24,0.12549]
[1735204451903,15.2968966,190.35,190.25,16.60638245]
[1735204452122,16.60638245,190.32,190.25,16.60638245]
[1735204452329,16.60638245,190.29,190.23,20.0]
[1735204452815,16.60638245,190.28,190.23,20.0]
[1735204453223,16.60638245,190.27,190.22,1.5963]
[1735204454642,16.60638245,190.27,190.2,22.75258245]
[1735204455016,16.60638245,190.29,190.22,16.60638245]
[1735204455423,16.60638245,190.3,190.23,16.60638245]
[1735204455820,33.21276545,190.33,190.26,16.60638245]
[1735204456752,16.60638245,190.32,190.25,16.60638245]
[1735204457128,16.60638245,190.31,190.25,16.60638245]
[1735204457443,16.60638245,190.35,190.28,16.60638245]
[1735204457643,16.60638245,190.35,190.29,16.60638245]
[1735204458431,16.60638245,190.34,190.27,16.73187245]
[1735204458628,16.60638245,190.32,190.26,1.66]
[1735204459247,16.60638245,190.33,190.26,18.26638245]
[1735204460049,16.60638245,190.34,190.27,16.60638245]
[1735204461250,16.60638245,190.33,190.27,0.12549]
[1735204462050,16.60638245,190.32,190.26,1.66]
[1735204464155,16.60638245,190.33,190.26,18.26638245]
[1735204464657,16.60638245,190.34,190.27,16.73187245]
[1735204464956,16.60638245,190.33,190.27,0.12549]
[1735204466149,1.5483,190.37,190.27,16.73187245]
[1735204466335,16.60638245,190.33,190.27,16.73187245]
[1735204466657,16.60638245,190.33,190.27,0.12549]
[1735204466944,13.1311,190.39,190.29,0.12549]
[1735204467149,16.60638245,190.35,190.29,0.12549]
[1735204467653,13.1311,190.39,190.27,16.60638245]
[1735204467654,16.60638245,190.33,190.27,16.60638245]
[1735204467830,16.60638245,190.33,190.28,0.12549]
[1735204469959,16.60638245,190.33,190.27,16.60638245]
[1735204470254,10.6245586,190.33,190.26,12.2845586]
[1735204470456,10.6245586,190.33,190.27,0.12549]
[1735204471135,10.6245586,190.33,190.26,12.2845586]
[1735204471351,10.6245586,190.27,190.22,1.5423]
[1735204471555,10.6245586,190.26,190.2,6.1462]
[1735204471939,10.6245586,190.25,190.19,0.12549]
[1735204472650,10.6245586,190.25,190.18,10.7500486]
[1735204473250,10.6245586,190.25,190.19,10.6245586]
[1735204473945,10.6245586,190.26,190.19,10.6245586]
[1735204474143,16.61307827,190.26,190.19,36.61307827]
[1735204476161,16.61307827,190.25,190.19,36.61307827]
[1735204476364,16.61307827,190.25,190.19,20.0]
[1735204476741,16.61307827,190.25,190.19,36.61307827]
[1735204477441,16.61307827,190.26,190.19,36.61307827]
[1735204478660,16.61307827,190.25,190.19,20.0]
[1735204479362,16.61307827,190.24,190.19,20.0]
[1735204479567,16.61307827,190.24,190.18,16.61307827]
[1735204479864,16.61307827,190.24,190.17,18.15537827]
[1735204481269,16.61307827,190.24,190.18,16.61307827]
[1735204481561,18.155379,190.23,190.18,16.61307827]
[1735204483260,18.155379,190.23,190.19,16.61307827]
[1735204483566,16.61307827,190.26,190.19,16.61307827]
[1735204483947,16.613078,190.25,190.19,16.61307827]
[1735204488476,16.61307827,190.24,190.17,1.5423]
[1735204488660,33.22615627,190.25,190.18,16.61307827]
[1735204488848,16.613078,190.25,190.21,16.61307827]
[1735204490085,16.613078,190.25,190.2,16.61307827]
[1735204490286,16.613078,190.25,190.19,16.61307827]
[1735204490510,33.22615627,190.25,190.19,16.61307827]
[1735204492293,16.613078,190.25,190.19,16.61307827]
[1735204492606,16.613078,190.25,190.17,1.5423]
[1735204492773,16.61307827,190.24,190.17,18.15537827]
[1735204493200,33.22615627,190.25,190.18,16.61307827]
[1735204494000,33.22615627,190.25,190.19,16.61307827]
[1735204494177,16.613078,190.25,190.19,10.63227755]
[1735204495579,16.613078,190.25,190.2,10.63227755]
[1735204495905,27.24535555,190.25,190.18,10.75776755]
[1735204497837,10.63227755,190.24,190.17,12.17457755]
[1735204497996,10.63227755,190.24,190.17,10.63227755]
[1735204499207,27.24535555,190.25,190.18,10.63227755]
[1735204500416,10.63227755,190.24,190.15,20.0]
[1735204500618,10.63227755,190.2,190.13,12.22577755]
[1735204500820,10.63227755,190.18,190.1,8.21917715]
[1735204501037,10.63227755,190.15,190.1,8.21917715]
[1735204501247,10.63227755,190.15,190.08,1.6502]
[1735204501248,10.63227755,190.15,190.08,8.21917715]
[1735204501532,10.63227755,190.14,190.08,18.8514547]
[1735204502412,10.63227755,190.14,190.02,15.92177715]
[1735204502617,10.63227755,190.13,190.06,10.63227755]
[1735204502812,10.63227755,190.12,190.05,10.63227755]
[1735204503203,10.63227755,190.11,190.04,10.63227755]
[1735204503411,10.63227755,190.1,190.04,10.63227755]
[1735204503613,21.0055,190.18,190.04,10.63227755]
[1735204503838,21.0055,190.18,190.07,10.63227755]
[1735204503997,10.63227755,190.14,190.01,0.91455106]
[1735204504203,10.63227755,190.12,190.06,10.63227755]
[1735204504403,10.63227755,190.12,190.05,10.63227755]
[1735204505207,10.63227755,190.11,190.05,10.63227755]
[1735204505910,10.63227755,190.11,190.01,0.78906106]
[1735204506116,10.63227755,190.07,190.0,10.63227755]
[1735204506517,10.63227755,190.06,189.99,10.63227755]
[1735204506839,10.63227755,190.08,190.02,10.63227755]
[1735204507038,1.5322,190.14,190.04,10.63227755]
[1735204507217,10.63227755,190.1,190.04,10.63227755]
[1735204508216,10.63227755,190.09,190.02,0.12549]
[1735204508413,10.63227755,190.08,190.02,10.75776755]
[1735204508646,10.63227755,190.08,190.02,0.12549]
[1735204508816,10.63227755,190.09,190.02,10.75776755]
[1735204509151,10.63227755,190.08,190.02,10.75776755]
[1735204509356,10.63227755,190.07,190.0,10.63227755]
[1735204509512,10.63227755,190.06,190.01,0.12549]
[1735204510414,10.63227755,190.06,189.99,10.63227755]
[1735204510956,10.63227755,190.05,190.0,0.12549]
[1735204511245,48.8569102,190.1,189.98,20.0]
[1735204511246,6.3278,190.1,189.98,20.0]
[1735204511433,10.63227755,190.05,189.99,0.12549]
[1735204511645,10.63227755,190.05,189.99,10.75776755]
[1735204512269,10.63227755,190.06,189.99,10.75776755]
[1735204512652,10.63227755,190.06,190.0,10.63227755]
[1735204512846,23.6140055,190.08,190.01,10.63227755]
[1735204513053,23.6140055,190.08,189.99,0.12549]
[1735204513054,23.6140055,190.08,190.02,10.63227755]
[1735204513454,23.6140055,190.08,190.03,10.63227755]
[1735204513657,23.6140055,190.08,190.02,10.63227755]
[1735204514449,34.24628305,190.08,190.01,10.58654755]
[1735204515470,34.24628305,190.08,190.02,10.63227755]
[1735204515676,10.63227755,190.07,190.01,10.63227755]
[1735204515852,10.63227755,190.07,190.0,30.63227755]
[1735204516048,10.63227755,190.07,190.01,10.63227755]
[1735204516672,10.63227755,190.06,189.99,10.63227755]
[1735204517051,10.63227755,190.04,189.98,10.75776755]
[1735204517549,10.63227755,190.03,189.97,20.0]
[1735204517950,10.63227755,190.03,189.97,30.63227755]
[1735204518169,10.63227755,190.04,189.97,30.63227755]
[1735204518569,10.63227755,190.03,189.97,30.63227755]
[1735204518879,10.63227755,190.04,189.97,30.63227755]
[1735204519746,10.63227755,190.03,189.97,20.0]
[1735204520152,10.63227755,190.02,189.97,20.0]
[1735204520382,10.63227755,190.03,189.96,10.63227755]
[1735204520853,10.63227755,190.0,189.93,20.0]
[1735204521155,10.63227755,190.02,189.95,10.63227755]
[1735204521872,10.63227755,190.02,189.94,0.12549]
[1735204522075,10.63227755,190.0,189.94,10.75776755]
[1735204522253,10.63227755,189.99,189.93,20.0]
[1735204522574,10.63227755,189.98,189.91,10.63227755]
[1735204523175,10.63227755,189.98,189.92,0.12549]
[1735204523487,6.1619,190.01,189.83,0.78969006]
[1735204523488,10.63227755,189.93,189.83,0.78969006]
[1735204523654,10.63227755,189.92,189.85,10.63227755]
[1735204524248,15.00461436,189.93,189.86,15.13010436]
[1735204524477,1.5516,189.97,189.83,13.95929006]
[1735204524478,15.00461436,189.94,189.87,15.00461436]
[1735204525553,15.00461436,189.92,189.83,13.95929006]
[1735204525753,15.00461436,189.92,189.86,15.00461436]
[1735204526659,15.00461436,189.93,189.86,15.00461436]
[1735204526977,1.5516,189.97,189.88,0.12549]
[1735204527162,1.5516,189.97,189.9,15.00461436]
[1735204527376,16.55621436,189.97,189.9,15.00461436]
[1735204527563,16.55621436,189.97,189.86,13.1674]
[1735204527564,15.00461436,189.96,189.89,35.00461436]
[1735204529178,15.00461436,189.95,189.89,20.0]
[1735204529373,15.00461436,189.94,189.88,0.12549]
[1735204529693,15.00461436,189.93,189.86,15.00461436]
[1735204531706,15.00461436,189.94,189.87,15.00461436]
[1735204532789,16.55621436,189.97,189.9,15.00461436]
[1735204533292,16.55621436,189.97,189.86,0.12549]
[1735204533473,15.00461436,189.94,189.87,15.00461436]
[1735204533868,15.00461436,189.95,189.87,15.00461436]
[1735204535268,15.00461436,189.94,189.87,15.00461436]
[1735204537276,15.00461436,189.92,189.85,15.00461436]
[1735204537478,15.00461436,189.91,189.85,15.00461436]
[1735204537888,15.00461436,189.91,189.84,15.00461436]
[1735204539096,15.00461436,189.91,189.85,15.00461436]
[1735204539297,15.00461436,189.92,189.85,15.00461436]
[1735204543874,15.00461436,189.91,189.84,35.00461436]
[1735204544076,15.00461436,189.92,189.85,15.00461436]
[1735204544274,15.00461436,189.95,189.89,15.00461436]
[1735204544877,15.00461436,189.95,189.88,15.00461436]
[1735204545174,15.00461436,189.94,189.87,15.00461436]
[1735204545985,1.5516,189.97,189.85,0.12549]
[1735204545986,15.00461436,189.95,189.88,15.00461436]
[1735204546182,9.60031818,189.95,189.89,9.60031818]
[1735204546383,9.60031818,189.98,189.92,9.60031818]
[1735204546698,15.76221818,190.01,189.94,9.60031818]
[1735204547876,9.60031818,190.01,189.94,9.60031818]
[1735204548094,9.60031818,190.0,189.93,29.60031818]
[1735204548290,9.60031818,190.0,189.93,9.60031818]
[1735204548578,9.60031818,189.99,189.93,9.60031818]
[1735204549107,9.60031818,189.99,189.93,20.12549]
[1735204549287,9.60031818,189.99,189.93,0.12549]
[1735204549678,9.60031818,190.0,189.93,20.0]
[1735204549878,9.60031818,189.97,189.9,9.60031818]
[1735204550098,9.60031818,189.96,189.89,9.60031818]
[1735204550300,9.60031818,189.98,189.91,9.60031818]
[1735204550604,9.60031818,189.99,189.92,9.60031818]
[1735204550979,9.60031818,189.99,189.93,0.12549]
[1735204552197,9.60031818,189.99,189.92,9.60031818]
[1735204552383,9.60031818,189.98,189.91,29.60031818]
[1735204553074,9.60031818,189.98,189.88,13.1662]
[1735204553283,9.60031818,189.96,189.89,9.60031818]
[1735204553510,9.60031818,189.94,189.87,11.19071818]
[1735204553698,9.60031818,189.93,189.87,1.5904]
[1735204554199,9.60031818,189.93,189.82,2.36802846]
[1735204554399,9.60031818,189.91,189.82,1.5781]
[1735204554575,9.60031818,189.85,189.8,0.78996612]
[1735204554780,9.60031818,189.84,189.77,8.16663546]
[1735204554983,9.60031818,189.83,189.77,8.16663546]
[1735204555376,1.632,189.86,189.78,9.60031818]
[1735204555581,6.1461,189.89,189.81,9.60031818]
[1735204555802,9.60031818,189.88,189.81,9.60031818]
[1735204555997,9.60031818,189.87,189.8,9.72580818]
[1735204556197,15.01342716,189.86,189.75,0.79034684]
[1735204556501,15.01342716,189.86,189.79,15.01342716]
[1735204557409,15.01342716,189.87,189.8,15.13891716]
[1735204557715,15.01342716,189.88,189.8,15.13891716]
[1735204558317,15.01342716,189.88,189.82,0.12549]
[1735204558495,15.01342716,189.89,189.82,15.01342716]
[1735204561403,16.64542716,189.91,189.84,15.01342716]
[1735204561605,15.01342716,189.93,189.86,15.01342716]
[1735204562414,1.6127,189.95,189.82,0.79002388]
[1735204562415,15.01342716,189.94,189.87,15.13891716]
[1735204562619,15.01342716,189.96,189.89,15.01342716]
[1735204562994,6.439,189.99,189.87,0.12549]
[1735204562995,21.45242716,189.99,189.92,15.01342716]
[1735204563201,15.01342716,189.99,189.92,15.01342716]
[1735204564119,15.01342716,189.99,189.89,6.97226256]
[1735204564120,15.01342716,189.98,189.91,15.01342716]
[1735204564292,15.01342716,189.97,189.9,15.01342716]
[1735204564497,15.01342716,189.94,189.87,35.01342716]
[1735204564700,15.01342716,189.93,189.86,15.01342716]
[1735204565298,15.01342716,189.94,189.87,15.01342716]
[1735204566620,15.01342716,189.94,189.84,6.1826]
[1735204566621,15.01342716,189.93,189.86,15.01342716]
[1735204567202,15.01342716,189.94,189.87,15.01342716]
[1735204567916,15.01342716,189.95,189.88,15.01342716]
[1735204568115,15.01342716,189.98,189.91,15.01342716]
[1735204569216,15.01342716,189.97,189.9,15.01342716]
[1735204569410,15.01342716,189.96,189.89,15.01342716]
[1735204569614,15.01342716,189.95,189.88,15.01342716]
[1735204570512,15.01342716,189.92,189.85,15.01342716]
[1735204571219,15.01342716,189.91,189.84,21.19602716]
[1735204571420,15.01342716,189.91,189.84,15.01342716]
[1735204572223,15.01342716,189.9,189.83,15.01342716]
[1735204572728,15.01342716,189.89,189.82,15.13891716]
[1735204573523,15.01342716,189.87,189.8,15.01342716]
[1735204573826,15.01342716,189.86,189.79,15.01342716]
[1735204574516,15.01342716,189.85,189.78,15.01342716]
[1735204575027,15.01342716,189.86,189.79,15.01342716]
[1735204575363,15.01342716,189.85,189.78,15.01342716]
[1735204575553,15.01342716,189.83,189.76,15.01342716]